lending/lending_fUSD_20251016
["ID","MTS","AMOUNT","RATE_DAILY","PERIOD"]
[391467884,1760614251828,-4386.01642948,0.00019285,2]
[391467885,1760614251837,-2165.81011058,0.00019399,2]
[391467887,1760614251846,-150.0,0.00019558,2]
[391467890,1760614251856,-150.0,0.00019686,2]
[391467892,1760614251865,-2000.0,0.000197,2]
[391467894,1760614251874,-150.0,0.00019707,2]
[391467896,1760614251883,-150.0,0.0001971,2]
[391467897,1760614251892,-150.0,0.00019715,2]
[391467899,1760614251902,-1425.0,0.00019725,2]
[391467901,1760614251911,-150.0,0.00019736,2]
[391467903,1760614251920,-150.0,0.00019756,2]
[391467905,1760614251932,-1425.0,0.00019781,2]
[391467907,1760614251941,-709.33927548,0.00019785,2]
[391467909,1760614251950,-150.0,0.00019814,2]
[391467911,1760614251959,-1425.0,0.00019819,2]
[391467913,1760614251968,-1425.0,0.00019831,2]
[391467915,1760614251977,-150.0,0.00019836,2]
[391467917,1760614251986,-200.0,0.0001984,2]
[391467919,1760614251995,-150.0,0.00019846,2]
[391467921,1760614252006,-150.0,0.00019867,2]
[391467923,1760614252015,-1425.0,0.00019871,2]
[391467925,1760614252025,-571.1,0.00019899,2]
[391467927,1760614252034,-2606.62,0.00019899,2]
[391467929,1760614252043,-3618.0,0.00019899,2]
[391467931,1760614252052,-500.0,0.00019899,2]
[391467933,1760614252061,-500.0,0.00019899,2]
[391467935,1760614252070,-192559.2793,0.000199,2]
[391467938,1760614252080,-151.0,0.000199,7]
[391467940,1760614252089,-152.607731,0.000199,7]
[391467941,1760614252098,-151.0,0.000199,7]
[391467944,1760614252108,-151.0,0.000199,7]
[391467946,1760614252117,-151.0,0.000199,7]
[391467948,1760614252126,-151.0,0.000199,7]
[391467950,1760614252135,-156.026345,0.000199,7]
[391467952,1760614252146,-151.0,0.000199,7]
[391467954,1760614252155,-151.0,0.000199,7]
[391467956,1760614252168,-273.142756,0.000199,7]
[391467958,1760614252177,-151.285324,0.000199,7]
[391467960,1760614252188,-153.655785,0.000199,7]
[391467962,1760614252198,-151.0,0.000199,7]
[391467964,1760614252210,-151.0,0.000199,7]
[391467966,1760614252220,-151.0,0.000199,7]
[391467968,1760614252231,-151.0,0.000199,7]
[391467970,1760614252242,-151.0,0.000199,7]
[391467972,1760614252255,-153.924731,0.000199,7]
[391467974,1760614252266,-165.065867,0.000199,7]
[391467976,1760614252276,-151.0,0.000199,7]
[391467978,1760614252285,-165.065867,0.000199,7]
[391467980,1760614252295,-165.065867,0.000199,7]
[391467982,1760614252305,-165.065867,0.000199,7]
[391467984,1760614252314,-152.015008,0.000199,7]
[391467986,1760614252324,-222.99156,0.000199,2]
[391467988,1760614252333,-151.0,0.000199,7]
[391467990,1760614252343,-151.0,0.000199,7]
[391467992,1760614252352,-151.0,0.000199,7]
[391467994,1760614252362,-151.0,0.000199,7]
[391467996,1760614252371,-151.0,0.000199,7]
[391467998,1760614252381,-151.0,0.000199,7]
[391468030,1760614252670,-151.0,0.000199,7]
[391468032,1760614252680,-151.0,0.000199,7]
[391468034,1760614252690,-151.0,0.000199,7]
[391468036,1760614252699,-151.0,0.000199,7]
[391468038,1760614252708,-151.0,0.000199,7]
[391468040,1760614252717,-151.0,0.000199,7]
[391468042,1760614252727,-193.760138,0.000199,7]
[391468044,1760614252736,-151.0,0.000199,7]
[391468045,1760614252746,-151.0,0.000199,7]
[391468046,1760614252756,-151.797954,0.000199,7]
[391468047,1760614252766,-726.408308,0.000199,7]
[391468048,1760614252775,-507.2012,0.000199,7]
[391468049,1760614252785,-176.031776,0.000199,7]
[391468050,1760614252794,-726.408308,0.000199,7]
[391468052,1760614252804,-507.2012,0.000199,7]
[391468054,1760614252813,-726.408308,0.000199,7]
[391468055,1760614252823,-507.2012,0.000199,7]
[391468057,1760614252832,-726.408308,0.000199,7]
[391468059,1760614252842,-507.2012,0.000199,7]
[391468061,1760614252852,-151.0,0.000199,7]
[391468064,1760614252861,-1425.0,0.00019932,2]
[391468065,1760614252870,-1425.0,0.00019952,2]
[391468067,1760614252879,-470.0,0.00019965,2]
[391468069,1760614252888,-807.46562071,0.00019971,2]
[391468071,1760614252898,-3516.0005154,0.00019978,2]
[391468074,1760614252908,-1425.0,0.00019981,2]
[391468076,1760614252918,-1425.0,0.00019995,2]
[391468078,1760614252927,-500.0,0.00019998,2]
[391468080,1760614252937,-1425.0,0.00019998,2]
[391468082,1760614252946,-500.0,0.00019999,2]
[391468084,1760614252956,-1371.17,0.00019999,2]
[391468085,1760614252965,-3618.0,0.00019999,2]
[391468088,1760614252975,-180.0,0.00019999,2]
[391468089,1760614252984,-156.0653844,0.00019999,2]
[391468091,1760614252993,-382.162442,0.00019999,2]
[391468093,1760614253003,-2128.49879347,0.0002,3]
[391468096,1760614253013,-1000.0,0.0002,4]
[391468098,1760614253024,-454.0,0.0002,5]
[391468099,1760614253034,-30000.0,0.0002,2]
[391468101,1760614253044,-2711.28328603,0.0002,2]
[391468103,1760614253054,-1059.758,0.0002,5]
[391468106,1760614253067,-475.57272817,0.0002,7]
[391468107,1760614253076,-4132.9639183,0.0002,2]
[391468110,1760614253086,-400.10432359,0.0002,2]
[391468111,1760614253096,-151.0,0.0002,7]
[391468113,1760614253105,-600.0,0.0002,2]
[391468115,1760614253114,-600.0,0.0002,2]
[391468117,1760614253124,-246.0,0.0002,2]
[391468119,1760614253134,-200.0,0.0002,2]
[391468121,1760614253144,-500.0,0.0002,2]
[391468123,1760614253154,-500.0,0.0002,2]
[391468125,1760614253165,-500.0,0.0002,2]
[391468127,1760614253176,-500.0,0.0002,2]
[391468129,1760614253186,-500.0,0.0002,2]
[391468131,1760614253196,-500.0,0.0002,2]
[391468133,1760614253207,-500.0,0.0002,2]
[391468135,1760614253217,-500.0,0.0002,2]
[391468137,1760614253227,-200.0,0.0002,2]
[391468139,1760614253238,-994.0,0.0002,2]
[391468142,1760614253250,-500.0,0.0002,2]
[391468144,1760614253261,-500.0,0.0002,2]
[391468146,1760614253271,-500.0,0.0002,2]
[391468148,1760614253280,-500.0,0.0002,2]
[391468150,1760614253291,-500.0,0.0002,2]
[391468152,1760614253300,-500.0,0.0002,2]
[391468154,1760614253310,-500.0,0.0002,2]
[391468156,1760614253319,-500.0,0.0002,2]
[391468158,1760614253328,-500.0,0.0002,2]
[391468159,1760614253339,-500.0,0.0002,2]
[391468161,1760614253348,-500.0,0.0002,2]
[391468164,1760614253359,-500.0,0.0002,2]
[391468166,1760614253369,-500.0,0.0002,2]
[391468168,1760614253379,-500.0,0.0002,2]
[391468170,1760614253389,-500.0,0.0002,2]
[391468172,1760614253398,-500.0,0.0002,2]
[391468174,1760614253408,-500.0,0.0002,2]
[391468176,1760614253420,-500.0,0.0002,2]
[391468178,1760614253431,-500.0,0.0002,2]
[391468180,1760614253440,-500.0,0.0002,2]
[391468182,1760614253450,-500.0,0.0002,2]
[391468184,1760614253460,-500.0,0.0002,2]
[391468186,1760614253470,-500.0,0.0002,2]
[391468188,1760614253480,-500.0,0.0002,2]
[391468190,1760614253489,-500.0,0.0002,2]
[391468192,1760614253499,-151.0,0.0002,7]
[391468194,1760614253508,-151.0,0.0002,7]
[391468196,1760614253518,-500.0,0.0002,2]
[391468198,1760614253527,-500.0,0.0002,2]
[391468200,1760614253537,-500.0,0.0002,2]
[391468202,1760614253546,-500.0,0.0002,2]
[391468204,1760614253556,-500.0,0.0002,2]
[391468206,1760614253566,-500.0,0.0002,2]
[391468208,1760614253575,-500.0,0.0002,2]
[391468210,1760614253585,-500.0,0.0002,2]
[391468212,1760614253595,-500.0,0.0002,2]
[391468214,1760614253604,-500.0,0.0002,2]
[391468216,1760614253614,-500.0,0.0002,2]
[391468218,1760614253623,-500.0,0.0002,2]
[391468220,1760614253632,-500.0,0.0002,2]
[391468222,1760614253641,-500.0,0.0002,2]
[391468224,1760614253650,-584.0,0.0002,2]
[391468226,1760614253659,-200.0,0.0002,2]
[391468228,1760614253669,-1000.0,0.0002,2]
[391468230,1760614253679,-317.66634918,0.0002,2]
[391468232,1760614253689,-151.0,0.0002,7]
[391468234,1760614253698,-151.0,0.0002,7]
[391468236,1760614253708,-223.852349,0.0002,7]
[391468238,1760614253718,-307.5078,0.0002,2]
[391468240,1760614253727,-500.0,0.0002,2]
[391468242,1760614253736,-500.0,0.0002,2]
[391468244,1760614253745,-500.0,0.0002,2]
[391468246,1760614253754,-1000.0,0.0002,2]
[391468248,1760614253764,-1000.0,0.0002,2]
[391468250,1760614253774,-1000.0,0.0002,2]
[391468252,1760614253784,-1000.0,0.0002,2]
[391468254,1760614253793,-882.60879947,0.0002,2]
[391468256,1760614253802,-151.0,0.00020013,7]
[391468259,1760614253813,-256.84,0.00020116,2]
[391468261,1760614253822,-1371.17,0.00020137,2]
[391468263,1760614253831,-182.28951022,0.00020138,2]
[391468264,1760614253841,-1490.0,0.00020138,2]
[391468266,1760614253851,-188.33,0.00020138,2]
[391468268,1760614253861,-500.0,0.00020138,2]
[391468271,1760614253871,-500.0,0.00020138,2]
[391468273,1760614253881,-500.0,0.00020138,2]
[391468274,1760614253891,-500.0,0.00020138,2]
[391468276,1760614253902,-18535.30596079,0.00020139,2]
[391468278,1760614253911,-416.89,0.00020187,2]
[391468280,1760614253921,-200.0,0.000202,2]
[391468282,1760614253930,-200.0,0.000202,2]
[391468284,1760614253940,-200.0,0.000202,2]
[391468286,1760614253950,-571.1,0.00020313,2]
[391468288,1760614253959,-2606.62,0.00020313,2]
[391468290,1760614253969,-500.0,0.00020313,2]
[391468292,1760614253979,-151.078084,0.00020314,5]
[391468294,1760614253988,-151.73939,0.00020314,7]
[391468296,1760614253998,-151.0,0.00020314,7]
[391468298,1760614254008,-151.0,0.00020314,7]
[391468300,1760614254019,-151.0,0.00020314,7]
[391468303,1760614254029,-200.0,0.00020402,2]
[391468304,1760614254040,-272.85009093,0.00020421,2]
[391468306,1760614254049,-150.0,0.00020421,2]
[391468308,1760614254058,-150.0,0.00020476,2]
[391468310,1760614254069,-1000.0,0.00020523,2]
[391468312,1760614254079,-500.0,0.00020523,2]
[391468313,1760614254089,-500.0,0.00020523,2]
[391468314,1760614254099,-500.0,0.00020523,2]
[391468315,1760614254109,-500.0,0.00020523,2]
[391468316,1760614254118,-500.0,0.00020523,2]
[391468317,1760614254128,-500.0,0.00020523,2]
[391468318,1760614254137,-500.0,0.00020523,2]
[391468319,1760614254147,-500.0,0.00020523,2]
[391468321,1760614254158,-500.0,0.00020523,2]
[391468323,1760614254172,-500.0,0.00020523,2]
[391468325,1760614254182,-500.0,0.00020523,2]
[391468327,1760614254192,-500.0,0.00020523,2]
[391468329,1760614254203,-500.0,0.00020523,2]
[391468331,1760614254213,-500.0,0.00020523,2]
[391468333,1760614254223,-500.0,0.00020523,2]
[391468335,1760614254234,-500.0,0.00020523,2]
[391468337,1760614254244,-500.0,0.00020523,2]
[391468339,1760614254255,-500.0,0.00020523,2]
[391468341,1760614254265,-500.0,0.00020523,2]
[391468343,1760614254274,-500.0,0.00020523,2]
[391468346,1760614254285,-500.0,0.00020523,2]
[391468347,1760614254295,-500.0,0.00020523,2]
[391468350,1760614254304,-500.0,0.00020523,2]
[391468351,1760614254315,-500.0,0.00020523,2]
[391468353,1760614254325,-500.0,0.00020523,2]
[391468355,1760614254336,-500.0,0.00020523,2]
[391468357,1760614254345,-500.0,0.00020523,2]
[391468359,1760614254356,-507.0,0.00020523,2]
[391468361,1760614254366,-500.0,0.00020523,2]
[391468363,1760614254376,-500.0,0.00020523,2]
[391468365,1760614254387,-500.0,0.00020523,2]
[391468367,1760614254397,-500.0,0.00020523,2]
[391468369,1760614254407,-500.0,0.00020523,2]
[391468371,1760614254416,-500.0,0.00020523,2]
[391468373,1760614254426,-500.0,0.00020523,2]
[391468375,1760614254435,-500.0,0.00020523,2]
[391468377,1760614254445,-500.0,0.00020523,2]
[391468379,1760614254454,-500.0,0.00020523,2]
[391468381,1760614254464,-500.0,0.00020523,2]
[391468383,1760614254473,-500.0,0.00020523,2]
[391468385,1760614254483,-500.0,0.00020523,2]
[391468387,1760614254492,-500.0,0.00020523,2]
[391468389,1760614254501,-500.0,0.00020523,2]
[391468391,1760614254510,-500.0,0.00020523,2]
[391468393,1760614254520,-500.0,0.00020523,2]
[391468395,1760614254529,-500.0,0.00020523,2]
[391468397,1760614254539,-500.0,0.00020523,2]
[391468399,1760614254548,-500.0,0.00020523,2]
[391468401,1760614254557,-500.0,0.00020523,2]
[391468403,1760614254567,-500.0,0.00020523,2]
[391468405,1760614254577,-500.0,0.00020523,2]
[391468407,1760614254586,-251.54344574,0.00020531,2]
[391468409,1760614254598,-150.0,0.00020592,2]
[391468411,1760614254607,-18816.84716697,0.000207,2]
[391468413,1760614254616,-1091.0,0.00020709,2]
[391468415,1760614254625,-4386.01642948,0.00020759,2]
[391468417,1760614254634,-256.84,0.00020795,2]
[391468419,1760614254644,-333.49,0.00020842,2]
[391468421,1760614254653,-31209.17875137,0.0002085,2]
[391468423,1760614254662,-165.065867,0.0002085,7]
[391468425,1760614254671,-151.0,0.0002085,7]
[391468427,1760614254680,-165.065867,0.0002085,7]
[391468429,1760614254689,-165.065867,0.0002085,7]
[391468431,1760614254700,-165.065867,0.0002085,7]
[391468433,1760614254710,-151.0,0.0002085,7]
[391468435,1760614254719,-151.0,0.0002085,7]
[391468437,1760614254728,-151.0,0.0002085,7]
[391468439,1760614254738,-151.0,0.0002085,7]
[391468441,1760614254748,-151.0,0.0002085,7]
[391468443,1760614254757,-151.0,0.0002085,7]
[391468445,1760614254767,-151.0,0.0002085,7]
[391468447,1760614254776,-151.0,0.0002085,7]
[391468449,1760614254785,-151.0,0.0002085,7]
[391468451,1760614254795,-151.0,0.0002085,7]
[391468453,1760614254805,-151.0,0.0002085,7]
[391468455,1760614254814,-726.408308,0.0002085,7]
[391468457,1760614254823,-507.2012,0.0002085,7]
[391468459,1760614254832,-726.408308,0.0002085,7]
[391468461,1760614254841,-507.2012,0.0002085,7]
[391468463,1760614254850,-726.408308,0.0002085,7]
[391468465,1760614254860,-507.2012,0.0002085,7]
[391468467,1760614254869,-726.408308,0.0002085,7]
[391468469,1760614254879,-507.2012,0.0002085,7]
[391468471,1760614254888,-151.0,0.0002085,7]
[391468473,1760614254897,-467.63005079,0.00020851,2]
[391468475,1760614254907,-9852.83406177,0.000209,30]
[391468535,1760614255546,-9515.08778819,0.000209,30]
[391468537,1760614255556,-475.57272817,0.000209,30]
[391468539,1760614255566,-247.37924554,0.000209,2]
[391468541,1760614255576,-1600.0,0.00020934,2]
[391468543,1760614255586,-250.17973598,0.00020973,2]
[391468545,1760614255597,-151.0,0.0002098,7]
[391468547,1760614255607,-151.0,0.0002098,7]
[391468549,1760614255617,-201.928733,0.0002098,7]
[391468551,1760614255627,-332.62,0.00020996,2]
[391468553,1760614255637,-500.0,0.00020999,2]
[391468555,1760614255646,-1490.0,0.00020999,2]
[391468557,1760614255658,-500.0,0.00020999,2]
[391468559,1760614255675,-500.0,0.00020999,2]
[391468561,1760614255685,-3618.0,0.00020999,2]
[391468563,1760614255695,-500.0,0.00020999,2]
[391468565,1760614255706,-500.0,0.00020999,2]
[391468567,1760614255716,-1000.0,0.00021,8]
[391468569,1760614255725,-565.44295021,0.00021,2]
[391468571,1760614255734,-20000.0,0.00021,2]
[391468573,1760614255744,-28070.39274135,0.00021,2]
[391468575,1760614255753,-1178.23601187,0.00021,2]
[391468608,1760614256055,-194.48448312,0.00021,2]
[391468610,1760614256065,-160.0,0.00021,7]
[391468612,1760614256076,-50703.25747376,0.00021,2]
[391468614,1760614256085,-151.0,0.00021,7]
[391468616,1760614256095,-151.0,0.00021,7]
[391468618,1760614256105,-151.0,0.00021,7]
[391468620,1760614256115,-151.0,0.00021,7]
[391468622,1760614256125,-151.0,0.00021,7]
[391468624,1760614256134,-151.0,0.00021,7]
[391468626,1760614256144,-151.0,0.00021,7]
[391468628,1760614256153,-151.0,0.00021,7]
[391468630,1760614256165,-417.0,0.000211,2]
[391468632,1760614256174,-571.1,0.00021125,2]
[391468634,1760614256183,-1371.17,0.00021125,2]
[391468636,1760614256194,-2606.62,0.00021125,2]
[391468638,1760614256205,-500.0,0.00021125,2]
[391468640,1760614256215,-21624.52362092,0.00021126,2]
[391468642,1760614256226,-250.0,0.0002114,2]
[391468644,1760614256235,-1338.41,0.0002142,30]
[391468646,1760614256246,-6764.80617927,0.000215,2]
[391468649,1760614256260,-6684.8,0.000215,2]
[391468940,1760614333379,250.1,0.00016299,30]
[391468948,1760614412250,300.0,0.00027397,120]
[391469260,1760614459821,-5000000.0,0.00030837,30]
[391470006,1760614505775,-5000000.0,0.00030837,30]
[391470384,1760614559297,1000.0,0.00027397,120]
[391470386,1760614559457,928.43,0.00027397,120]
[391470477,1760614575866,150.0,0.00026797,120]
[391470515,1760614587867,150.0,0.000264,120]
[391470524,1760614598764,150.0,0.000264,120]
[391470527,1760614600547,150.0,0.000273,120]
[391470537,1760614603011,-6000000.0,0.00030837,30]
[391470550,1760614610132,457.0,0.0002639,120]
[391470551,1760614610302,457.0,0.0002638,120]
[391470552,1760614610593,457.0,0.0002637,120]
[391470553,1760614616447,1000.0,0.00027397,120]
[391470554,1760614620597,-4925049.10270803,0.00030837,30]
[391470555,1760614620622,-2000.0,0.00030837,120]
[391470556,1760614620645,-1374.28,0.00030837,62]
[391470557,1760614620668,-1000.0,0.00030837,30]
[391470558,1760614620692,-4516.19605991,0.00030837,120]
[391470559,1760614620715,-1866.82161726,0.00030837,120]
[391470560,1760614620739,-64193.5996148,0.00030837,30]
[391470572,1760614633236,300.0,0.00027397,120]
[391470608,1760614654030,300.0,0.00027397,120]
[391470610,1760614655610,150.0,0.00026797,120]
[391470619,1760614660556,1000.0,0.00027397,120]
[391470627,1760614667064,150.0,0.00026797,120]
[391470628,1760614667722,-586756.9403852,0.00030827,30]
[391470629,1760614667748,-107889.0,0.00030827,60]
[391470630,1760614667773,-221.58169177,0.00030827,120]
[391470631,1760614667802,-3000.0,0.00030827,30]
[391470632,1760614667828,-3000.0,0.00030827,60]
[391470633,1760614667855,-500.0,0.00030827,120]
[391470634,1760614667881,-500.0,0.00030827,120]
[391470635,1760614667907,-500.0,0.00030827,120]
[391470636,1760614667932,-500.0,0.00030827,120]
[391470637,1760614667958,-500.0,0.00030827,120]
[391470638,1760614667985,-500.0,0.00030827,120]
[391470639,1760614668012,-500.0,0.00030827,120]
[391470640,1760614668040,-500.0,0.00030827,120]
[391470641,1760614668066,-500.0,0.00030827,120]
[391470642,1760614668093,-500.0,0.00030827,120]
[391470643,1760614668365,-500.0,0.00030827,120]
[391470644,1760614668507,-500.0,0.00030827,120]
[391470645,1760614668532,-500.0,0.00030827,120]
[391470646,1760614668559,-500.0,0.00030827,120]
[391470647,1760614668586,-500.0,0.00030827,120]
[391470648,1760614668613,-500.0,0.00030827,120]
[391470649,1760614668638,-500.0,0.00030827,120]
[391470650,1760614668664,-500.0,0.00030827,120]
[391470651,1760614668691,-500.0,0.00030827,120]
[391470652,1760614668718,-500.0,0.00030827,120]
[391470653,1760614668743,-244.31,0.00030827,120]
[391470654,1760614668769,-500.0,0.00030827,120]
[391470655,1760614668795,-500.0,0.00030827,120]
[391470656,1760614668823,-500.0,0.00030827,120]
[391470657,1760614668851,-500.0,0.00030827,120]
[391470658,1760614668879,-498.0,0.00030827,120]
[391470659,1760614668906,-157.39,0.00030827,120]
[391470660,1760614668933,-500.0,0.00030827,120]
[391470661,1760614668962,-464.82608326,0.00030827,120]
[391470662,1760614668989,-500.0,0.00030827,120]
[391470663,1760614669017,-500.0,0.00030827,120]
[391470664,1760614669044,-500.0,0.00030827,120]
[391470665,1760614669070,-500.0,0.00030827,120]
[391470666,1760614669097,-500.0,0.00030827,120]
[391470667,1760614669124,-500.0,0.00030827,120]
[391470668,1760614669151,-498.0,0.00030827,120]
[391470669,1760614669179,-503.3298,0.00030827,120]
[391470670,1760614669207,-634.16,0.00030827,120]
[391470671,1760614669234,-500.0,0.00030827,120]
[391470672,1760614669260,-500.0,0.00030827,120]
[391470673,1760614669289,-500.0,0.00030827,120]
[391470674,1760614669316,-500.0,0.00030827,120]
[391470675,1760614669340,-500.0,0.00030827,120]
[391470676,1760614669366,-500.0,0.00030827,120]
[391470677,1760614669390,-500.0,0.00030827,120]
[391470678,1760614669415,-500.0,0.00030827,120]
[391470679,1760614669440,-500.0,0.00030827,120]
[391470680,1760614669464,-500.0,0.00030827,120]
[391470681,1760614669488,-500.0,0.00030827,120]
[391470682,1760614669514,-500.0,0.00030827,120]
[391470683,1760614669539,-500.0,0.00030827,120]
[391470684,1760614669563,-500.0,0.00030827,120]
[391470685,1760614669587,-500.0,0.00030827,120]
[391470686,1760614669612,-500.0,0.00030827,120]
[391470687,1760614669636,-500.0,0.00030827,120]
[391470688,1760614669659,-522.39225353,0.00030827,120]
[391470689,1760614669683,-500.0,0.00030827,120]
[391470690,1760614669708,-500.0,0.00030827,120]
[391470691,1760614669733,-500.0,0.00030827,120]
[391470692,1760614669758,-290.1,0.00030827,120]
[391470693,1760614669783,-500.0,0.00030827,120]
[391470694,1760614669808,-330.13856661,0.00030827,120]
[391470695,1760614669833,-500.0,0.00030827,120]
[391470696,1760614669859,-500.0,0.00030827,120]
[391470697,1760614669886,-500.0,0.00030827,120]
[391470698,1760614669911,-500.0,0.00030827,120]
[391470699,1760614669935,-500.0,0.00030827,120]
[391470700,1760614669960,-248.13932134,0.00030827,120]
[391470701,1760614669983,-500.0,0.00030827,120]
[391470702,1760614670007,-500.0,0.00030827,120]
[391470703,1760614670031,-160.70833212,0.00030827,120]
[391470704,1760614670056,-500.0,0.00030827,120]
[391470705,1760614670080,-500.0,0.00030827,120]
[391470706,1760614670104,-500.0,0.00030827,120]
[391470707,1760614670130,-500.0,0.00030827,120]
[391470708,1760614670154,-444.40350032,0.00030827,120]
[391470709,1760614670178,-500.0,0.00030827,60]
[391470710,1760614670202,-500.0,0.00030827,120]
[391470711,1760614670226,-500.0,0.00030827,120]
[391470712,1760614670251,-500.0,0.00030827,120]
[391470713,1760614670276,-500.0,0.00030827,120]
[391470714,1760614670304,-500.0,0.00030827,120]
[391470715,1760614670328,-500.0,0.00030827,120]
[391470716,1760614670355,-500.0,0.00030827,120]
[391470717,1760614670380,-500.0,0.00030827,120]
[391470718,1760614670414,-500.0,0.00030827,120]
[391470719,1760614670438,-356.702394,0.00030827,120]
[391470720,1760614670465,-500.0,0.00030827,120]
[391470721,1760614670490,-390.54,0.00030827,120]
[391470722,1760614670514,-500.0,0.00030827,120]
[391470723,1760614670537,-500.0,0.00030827,120]
[391470724,1760614670561,-500.0,0.00030827,120]
[391470725,1760614670585,-500.0,0.00030827,120]
[391470726,1760614670609,-500.0,0.00030827,120]
[391470727,1760614670634,-500.0,0.00030827,120]
[391470728,1760614670660,-500.0,0.00030827,120]
[391470729,1760614670684,-500.0,0.00030827,120]
[391470730,1760614670709,-500.0,0.00030827,120]
[391470731,1760614670734,-500.0,0.00030827,120]
[391470732,1760614670759,-500.0,0.00030827,120]
[391470733,1760614670784,-500.0,0.00030827,120]
[391470734,1760614670809,-500.0,0.00030827,120]
[391470735,1760614670833,-500.0,0.00030827,120]
[391470736,1760614670858,-500.0,0.00030827,120]
[391470737,1760614670882,-500.0,0.00030827,120]
[391470738,1760614670906,-500.0,0.00030827,120]
[391470739,1760614670935,-500.0,0.00030827,120]
[391470740,1760614670963,-285.09928496,0.00030827,120]
[391470741,1760614670989,-500.0,0.00030827,120]
[391470742,1760614671014,-500.0,0.00030827,120]
[391470743,1760614671039,-634.15,0.00030827,120]
[391470744,1760614671063,-500.0,0.00030827,120]
[391470745,1760614671088,-500.0,0.00030827,120]
[391470746,1760614671112,-500.0,0.00030827,120]
[391470747,1760614671138,-500.0,0.00030827,120]
[391470748,1760614671440,-500.0,0.00030827,120]
[391470749,1760614671468,-500.0,0.00030827,120]
[391470750,1760614671494,-500.0,0.00030827,120]
[391470751,1760614671519,-500.0,0.00030827,120]
[391470752,1760614671544,-500.0,0.00030827,120]
[391470753,1760614671568,-500.0,0.00030827,120]
[391470754,1760614671593,-206.66147845,0.00030827,120]
[391470755,1760614671617,-500.0,0.00030827,120]
[391470756,1760614671642,-500.0,0.00030827,120]
[391470757,1760614671667,-500.0,0.00030827,120]
[391470758,1760614671692,-279.78469927,0.00030827,120]
[391470759,1760614671716,-500.0,0.00030827,120]
[391470760,1760614671741,-500.0,0.00030827,120]
[391470761,1760614671767,-500.0,0.00030827,120]
[391470762,1760614671792,-500.0,0.00030827,120]
[391470763,1760614671816,-500.0,0.00030827,120]
[391470764,1760614671844,-500.0,0.00030827,120]
[391470765,1760614671869,-500.0,0.00030827,120]
[391470766,1760614671893,-500.0,0.00030827,120]
[391470767,1760614671918,-500.0,0.00030827,120]
[391470768,1760614671948,-500.0,0.00030827,120]
[391470769,1760614671973,-500.0,0.00030827,120]
[391470770,1760614671998,-500.0,0.00030827,120]